bitfinex-derivatives/quotes_ETHF0:USTF0_20260120
["timestamp","ask_amount","ask_price","bid_price","bid_amount"]
[1768950279639,3.70928397,2942.6,2941.1,3.063]
[1768950279834,3.70499918,2942.4,2940.1,3.78663085]
[1768950280038,3.70499918,2942.4,2940.7,3.063]
[1768950280434,3.70499918,2942.1,2939.8,4.27694255]
[1768950280635,0.00428479,2942.6,2939.9,2.354]
[1768950280636,3.70499918,2941.3,2939.9,2.354]
[1768950280936,3.70499918,2941.3,2939.3,0.17031]
[1768950281244,3.70499918,2941.3,2939.7,2.353]
[1768950281534,3.70499918,2941.1,2939.8,2.353]
[1768950282839,3.70499918,2941.1,2939.6,0.00296697]
[1768950283138,3.70499918,2940.8,2939.6,0.00296697]
[1768950283342,3.70499918,2940.2,2939.1,2.353]
[1768950283842,3.70499918,2941.1,2939.1,2.353]
[1768950284039,3.70499918,2940.9,2939.1,2.353]
[1768950284242,3.70803025,2940.9,2939.1,2.35721351]
[1768950286132,3.70803025,2940.9,2939.1,0.00421351]
[1768950286440,3.67560604,2940.7,2939.2,5.416]
[1768950286743,3.67560604,2940.7,2939.3,2.353]
[1768950287330,3.67560604,2940.7,2939.1,0.00421351]
[1768950287537,3.67560604,2940.7,2939.2,2.353]
[1768950288932,3.84584604,2940.7,2939.1,0.00421351]
[1768950289141,3.84584604,2940.6,2939.2,2.353]
[1768950290342,3.84584604,2940.6,2939.1,0.00421351]
[1768950290542,3.84584604,2940.6,2939.2,2.352]
[1768950291946,0.00303107,2940.9,2939.2,5.81152093]
[1768950292146,0.00303107,2940.9,2939.3,3.62984093]
[1768950292348,3.67863711,2940.9,2939.4,20.616]
[1768950292843,0.00303107,2940.9,2939.4,20.616]
[1768950293148,0.00303107,2940.9,2939.4,15.2]
[1768950293343,0.00303107,2940.9,2939.5,5.417]
[1768950293847,3.67863711,2940.9,2939.6,2.353]
[1768950295148,3.67863711,2940.9,2939.7,5.418]
[1768950296550,0.00303107,2940.9,2939.7,5.418]
[1768950297452,0.00303107,2940.9,2939.2,15.2]
[1768950297746,0.00303107,2940.9,2939.2,15.37032]
[1768950297945,3.67863711,2940.9,2939.1,3.46373444]
[1768950298150,3.67560604,2940.6,2939.2,5.42]
[1768950298549,0.00303107,2940.9,2939.3,3.45952093]
[1768950298751,3.67863711,2940.9,2939.1,0.00421351]
[1768950298946,3.67863711,2940.9,2939.2,5.419]
[1768950299146,3.67863711,2940.9,2939.3,0.17031]
[1768950299349,3.67863711,2940.9,2939.3,3.62983093]
[1768950300252,0.00303107,2940.9,2939.5,3.45952093]
[1768950300451,0.00303107,2940.9,2939.6,0.1703]
[1768950300843,0.00303107,2940.9,2939.5,3.45952093]
[1768950300844,0.00303107,2940.9,2940.0,0.17027]
[1768950301044,3.67560604,2941.9,2940.1,2.355]
[1768950301247,3.84578604,2941.7,2940.2,5.419]
[1768950301448,3.84578604,2941.7,2940.3,5.419]
[1768950301754,3.84578604,2941.7,2940.4,5.419]
[1768950301947,3.84992422,2941.7,2940.4,5.419]
[1768950302253,3.84992422,2941.7,2939.7,0.17029]
[1768950302448,3.84992422,2941.7,2939.8,5.419]
[1768950302643,3.67560604,2941.3,2939.9,3.064]
[1768950302848,3.84580604,2941.3,2940.0,2.354]
[1768950303049,0.00413818,2941.7,2940.1,3.45952093]
[1768950303350,0.00413818,2941.7,2940.2,8.87752093]
[1768950303551,0.00413818,2941.7,2940.3,3.45952093]
[1768950305750,2.7087641,2942.8,2940.7,3.45952093]
[1768950306051,2.7087641,2942.8,2940.9,3.45952093]
[1768950306351,3.67560604,2943.0,2940.9,3.45952093]
[1768950306853,3.67943527,2943.0,2940.9,3.45952093]
[1768950307359,3.67560604,2942.2,2940.4,3.45952093]
[1768950307658,3.84575604,2942.2,2940.5,2.354]
[1768950308055,2.7087641,2941.8,2939.9,3.45952093]
[1768950308265,2.7087641,2941.8,2940.0,5.418]
[1768950308558,2.7087641,2941.8,2940.0,8.87752093]
[1768950309751,2.7087641,2941.8,2940.1,3.45952093]
[1768950310059,6.38437014,2941.8,2940.2,5.419]
[1768950310259,0.17016,2942.0,2940.3,3.45952093]
[1768950310452,3.84576604,2942.0,2940.3,3.45952093]
[1768950310654,3.67560604,2941.7,2940.4,2.355]
[1768950311551,3.67560604,2941.7,2939.8,3.45952093]
[1768950311758,3.67560604,2941.7,2939.1,0.17454351]
[1768950311759,2.7087641,2940.8,2939.1,0.00421351]
[1768950311957,2.71175616,2940.8,2939.2,5.81352093]
[1768950312157,0.00299206,2940.8,2939.3,3.45952093]
[1768950314851,0.00299206,2940.8,2939.4,2.354]
[1768950315053,2.71175616,2940.8,2939.4,5.418]
[1768950315354,6.4136979,2940.8,2939.4,5.418]
[1768950315770,6.4136979,2940.8,2939.1,0.00421351]
[1768950315953,6.4136979,2940.8,2939.4,2.354]
[1768950316562,6.5839279,2940.8,2939.4,2.354]
[1768950316964,3.70194174,2940.7,2939.3,2.354]
[1768950317963,2.88198616,2940.8,2939.3,2.354]
[1768950318754,0.17322206,2940.8,2939.3,2.354]
[1768950318954,0.17322206,2940.8,2939.3,5.82258161]
[1768950319152,2.7087641,2939.4,2937.1,3.46858161]
[1768950319449,2.7087641,2938.9,2937.2,3.46858161]
[1768950319655,2.7087641,2938.9,2937.4,3.46858161]
[1768950320055,0.17035,2938.8,2937.4,3.47147733]
[1768950320259,3.87229174,2938.8,2937.4,0.00289572]
[1768950320562,0.17039,2938.0,2935.9,3.46858161]
[1768950321363,0.17387877,2938.0,2936.1,3.46858161]
[1768950321557,0.17387877,2938.0,2936.2,8.88558161]
[1768950321757,0.17387877,2938.0,2936.3,8.88558161]
[1768950322059,0.17387877,2938.0,2936.4,3.46858161]
[1768950322251,0.00348877,2938.0,2936.4,3.46858161]
[1768950322755,0.00348877,2938.0,2936.6,3.46858161]
[1768950322961,3.87225174,2939.5,2936.8,3.63904161]
[1768950323458,0.17031,2939.5,2937.4,3.46858161]
[1768950323664,0.17031,2939.5,2937.6,3.46858161]
[1768950323861,0.00306298,2939.5,2937.6,3.46858161]
[1768950324464,0.00306298,2939.5,2937.8,3.46858161]
[1768950325065,0.00306298,2939.5,2938.2,3.46858161]
[1768950325370,3.70194174,2941.1,2938.7,3.46858161]
[1768950325564,3.70194174,2941.1,2938.9,3.46858161]
[1768950325968,0.17019,2941.4,2938.9,3.46858161]
[1768950326165,0.00352308,2941.4,2939.2,3.46858161]
[1768950326873,0.00352308,2941.4,2939.5,3.63888161]
[1768950327169,3.70194174,2942.9,2940.4,3.46858161]
[1768950327361,3.70194174,2942.9,2940.6,3.46858161]
[1768950327568,3.87202174,2943.4,2940.8,3.46858161]
[1768950328268,3.8754177,2943.4,2940.8,3.47150681]
[1768950328773,3.8754177,2943.4,2941.0,3.46858161]
[1768950329867,3.8754177,2943.4,2941.1,18.66858161]
[1768950330071,3.70194174,2943.0,2940.9,3.064]
[1768950330266,3.87204174,2943.0,2940.9,5.416]
[1768950330467,3.87204174,2943.0,2941.1,3.46858161]
[1768950330661,0.00339596,2943.4,2941.1,3.46858161]
[1768950330872,3.7053377,2943.4,2941.1,3.46858161]
[1768950332673,3.7053377,2943.4,2941.6,3.46858161]
[1768950332674,0.00339596,2943.4,2941.6,3.46858161]
[1768950332977,0.00339596,2943.4,2941.8,3.46858161]
[1768950333565,0.00339596,2943.4,2941.9,5.415]
[1768950333768,0.00339596,2943.4,2942.0,3.46858161]
[1768950334174,0.00339596,2943.4,2942.2,3.46858161]
[1768950334473,0.00339596,2943.4,2942.3,5.414]
[1768950335272,0.00339596,2943.4,2942.4,2.35]
[1768950335480,0.00339596,2943.4,2942.4,5.413]
[1768950336672,0.00339596,2943.4,2942.5,2.35]
[1768950336875,0.00339596,2943.4,2941.7,3.46858161]
[1768950337177,0.17009,2943.3,2941.2,3.46858161]
[1768950337478,3.7053377,2943.4,2941.4,3.46858161]
[1768950337675,0.00339596,2943.4,2941.4,3.46858161]
[1768950339771,0.00339596,2943.4,2941.5,5.412]
[1768950339970,0.00339596,2943.4,2941.6,3.46858161]
[1768950342077,0.00339596,2943.4,2941.7,5.411]
[1768950342774,0.00339596,2943.4,2941.8,3.46858161]
[1768950344072,0.00339596,2943.4,2941.9,8.87758161]
[1768950344873,0.00339596,2943.4,2941.9,3.46858161]
[1768950345080,0.00339596,2943.4,2942.0,5.409]
[1768950345477,0.00339596,2943.4,2941.9,3.46858161]
[1768950345787,0.00339596,2943.4,2942.0,5.409]
[1768950345980,0.00339596,2943.4,2942.1,2.347]
[1768950346574,0.17347596,2943.4,2941.9,3.46858161]
[1768950346779,3.59540322,2943.4,2941.1,3.72378299]
[1768950346980,3.59540322,2943.4,2941.2,9.13178299]
[1768950348378,3.59540322,2943.4,2941.2,3.72378299]
[1768950348578,0.17011,2942.9,2941.4,3.72378299]
[1768950348975,3.59540322,2943.4,2941.4,3.72378299]
[1768950349582,3.59540322,2943.4,2940.9,6.78578299]
[1768950349583,3.76211726,2942.8,2940.9,6.78578299]
[1768950349779,3.59200726,2942.8,2940.8,0.0029252]
[1768950350083,0.17016,2942.0,2940.9,3.062]
[1768950350476,0.17016,2942.0,2940.8,0.0029252]
[1768950350678,0.17017,2941.9,2940.8,0.0029252]
[1768950351078,3.76217726,2941.9,2940.8,0.0029252]
[1768950357080,0.17017,2941.8,2940.8,0.0029252]
[1768950357390,3.59200726,2941.6,2939.8,3.72378299]
[1768950357590,0.17022,2941.1,2939.8,3.72378299]
[1768950358487,0.17346635,2941.1,2939.8,3.72782199]
[1768950358679,0.00324635,2941.1,2939.8,3.72782199]
[1768950358889,3.59200726,2942.1,2940.0,3.72378299]
[1768950359086,3.76216726,2942.1,2940.0,3.72378299]
[1768950359684,0.17017,2941.9,2940.0,3.72378299]
[1768950359994,3.76516768,2941.9,2940.1,5.407]
[1768950360486,3.76516768,2941.9,2940.2,3.72378299]
[1768950360688,0.17316042,2941.9,2940.2,3.72378299]
[1768950361088,0.00299042,2941.9,2940.2,3.72378299]
[1768950361494,0.00299042,2941.9,2940.2,7.12978299]
[1768950361694,0.00299042,2941.9,2940.3,3.72378299]
[1768950361997,0.00299042,2941.9,2940.5,3.72378299]
[1768950362795,0.17013,2942.5,2940.7,3.72378299]
[1768950362988,0.1701,2943.2,2940.7,3.89401299]
[1768950363193,0.1701,2943.1,2940.7,3.89401299]
[1768950363496,0.1701,2943.1,2940.9,3.89400299]
[1768950363694,0.1701,2943.0,2941.1,3.72378299]
[1768950363895,0.172786,2943.0,2941.1,3.72378299]
[1768950364596,0.172786,2943.0,2941.1,3.89399299]
[1768950364792,0.002686,2943.0,2941.3,3.89398299]
[1768950364993,0.002686,2943.0,2941.5,3.72378299]
[1768950366097,0.002686,2943.0,2941.6,6.06778299]
[1768950366299,0.002686,2943.0,2941.7,3.89396299]
[1768950366795,0.002686,2943.0,2941.7,3.72378299]
[1768950367098,0.002686,2943.0,2941.8,5.406]
[1768950367296,0.002686,2943.0,2941.2,6.78678299]
[1768950367494,3.59469326,2943.0,2941.2,6.78678299]
[1768950367699,0.17016,2942.1,2940.3,9.12978299]
[1768950367893,3.76216726,2942.1,2940.3,3.72378299]
[1768950368089,3.76216726,2942.1,2940.2,3.063]
[1768950368090,0.17018,2941.7,2940.2,2.343]
[1768950368303,3.76218726,2941.7,2940.2,2.343]
[1768950368493,3.76218726,2941.7,2940.0,2.343]
[1768950372203,3.76218726,2941.7,2939.9,2.342]
[1768950372698,3.59200726,2941.7,2940.0,3.72378299]
[1768950372906,3.59200726,2942.2,2940.0,3.72378299]
[1768950374101,0.17014,2942.3,2940.0,3.72378299]
[1768950374605,0.172786,2943.0,2940.6,3.89402299]
[1768950374801,0.97435241,2942.9,2940.6,3.89402299]
[1768950375000,0.172786,2943.0,2940.6,19.09402299]
[1768950375206,0.97436809,2942.9,2940.7,3.48509018]
[1768950375507,3.78920878,2942.9,2940.9,3.48509018]
[1768950375700,3.78920878,2942.9,2941.0,3.063]
[1768950376107,3.78920878,2942.9,2940.9,3.48509018]
[1768950376108,0.17013,2942.5,2940.9,5.82609018]
[1768950376810,0.002686,2943.0,2941.0,3.48509018]
[1768950377009,0.97526904,2942.9,2941.0,3.48509018]
[1768950377210,0.17011,2942.9,2941.0,3.48509018]
[1768950377802,0.002686,2943.0,2941.0,3.48509018]
[1768950378003,0.17014,2942.4,2941.1,2.341]
[1768950378304,0.17014,2942.4,2941.0,2.341]
[1768950378512,0.172786,2943.0,2941.1,3.48509018]
[1768950378705,0.97572621,2942.9,2941.1,3.48509018]
[1768950378914,0.172786,2943.0,2941.1,3.48509018]
[1768950379208,3.79188478,2943.0,2941.1,3.48509018]
[1768950380007,3.78920878,2942.9,2941.1,5.82509018]
[1768950380403,3.61909878,2942.9,2941.2,3.48509018]
[1768950380607,0.002686,2943.0,2941.2,3.48509018]
[1768950381112,0.002686,2943.0,2941.5,3.65528018]
[1768950381710,0.002686,2943.0,2941.7,3.65526018]
[1768950382213,0.002686,2943.0,2941.7,18.85526018]
[1768950382402,0.002686,2943.0,2941.8,3.48509018]
[1768950383107,0.002686,2943.0,2941.9,5.403]
[1768950383313,0.002686,2943.0,2941.9,5.406082]
[1768950383503,3.61909878,2944.1,2942.0,3.48509018]
[1768950384505,3.61909878,2943.9,2942.1,5.402]
[1768950384708,0.00408336,2944.1,2942.2,3.48509018]
[1768950384910,0.00408336,2944.1,2942.2,6.36000465]
[1768950385108,0.00408336,2944.1,2942.3,3.48509018]
[1768950385914,0.00408336,2944.1,2942.3,3.65523018]
[1768950386210,0.00408336,2944.1,2942.3,3.48509018]
[1768950386517,0.00408336,2944.1,2942.8,3.48509018]
[1768950387210,3.61909878,2944.9,2942.8,3.48509018]
[1768950387412,7.07396064,2945.4,2943.3,3.48509018]
[1768950387612,3.61909878,2945.4,2943.5,3.48509018]
[1768950387916,3.61909878,2945.9,2943.8,3.48509018]
[1768950388115,3.79335386,2945.9,2943.8,3.48509018]
[1768950389422,0.00431508,2945.9,2943.8,3.65514018]
[1768950389918,3.62341386,2945.9,2943.8,3.48509018]
[1768950390217,0.16995,2945.7,2943.9,2.339]
[1768950390915,3.78904878,2945.7,2944.0,2.338]
[1768950391125,3.78904878,2945.7,2944.0,2.34135061]
[1768950391312,0.16995,2945.7,2944.1,3.48509018]
[1768950391614,0.00431508,2945.9,2944.1,3.48509018]
[1768950392316,0.00431508,2945.9,2944.3,3.48509018]
[1768950392513,0.00431508,2945.9,2944.4,5.399]
[1768950392823,0.00431508,2945.9,2944.5,2.338]
[1768950393616,0.00431508,2945.9,2944.6,3.48509018]
[1768950394815,0.00431508,2945.9,2944.7,5.398]
[1768950395116,0.00431508,2945.9,2944.1,3.48509018]
[1768950395315,0.00431508,2945.9,2944.2,2.337]
[1768950395510,0.00431508,2945.9,2944.3,3.48509018]
[1768950396417,0.00431508,2945.9,2944.0,0.17339061]
[1768950396418,0.16996,2945.4,2944.0,0.00335061]
[1768950396617,0.16997,2945.3,2944.1,3.06]
[1768950398919,0.16997,2945.3,2944.0,2.33835061]
[1768950399522,0.16997,2945.3,2944.0,0.00335061]
[1768950399913,6.32386325,2945.5,2944.0,0.00335061]
[1768950399914,0.16998,2945.2,2944.0,0.00335061]
[1768950400114,0.16999,2945.0,2944.0,0.00335061]
[1768950401223,2.70476447,2945.5,2944.0,0.00335061]
[1768950401224,0.16996,2945.5,2944.2,3.48509018]
[1768950401421,0.16996,2945.5,2944.1,5.395]
[1768950401620,0.00431508,2945.9,2944.1,8.88009018]
[1768950401824,0.17425508,2945.9,2944.1,8.88009018]
[1768950402123,0.16998,2945.2,2944.0,0.00335061]
[1768950402424,6.32386325,2945.6,2944.0,0.00335061]
[1768950402425,0.17,2944.9,2944.0,0.00335061]
[1768950403526,0.16996,2945.5,2944.0,0.00335061]
[1768950405115,3.47708788,2945.8,2944.0,0.00335061]
[1768950405323,0.16997,2945.3,2944.0,0.00335061]
[1768950405533,0.16997,2945.3,2944.1,2.334]
[1768950405924,0.16997,2945.3,2944.1,2.333]
[1768950406118,2.70476447,2945.6,2944.0,0.00335061]
[1768950406324,0.17,2944.8,2944.0,0.00335061]
[1768950406530,0.17001,2944.7,2944.0,0.00335061]
[1768950407231,0.17002,2944.4,2942.8,2.333]
[1768950407526,0.17002,2944.4,2942.8,5.87087272]
[1768950407732,0.17002,2944.4,2942.9,3.53787272]
[1768950408034,0.17002,2944.4,2942.9,3.54131591]
[1768950408428,3.64707788,2945.0,2942.9,3.54131591]
[1768950408628,0.16999,2944.9,2942.9,3.54131591]
[1768950408829,0.17,2944.8,2942.9,3.54131591]
[1768950409132,3.64708788,2944.8,2942.9,3.54131591]
[1768950409333,3.47708788,2944.8,2942.9,3.54131591]
[1768950409633,0.17002,2944.4,2942.9,5.87431591]
[1768950411023,6.18185235,2944.4,2942.9,0.00344319]
[1768950411220,3.47708788,2944.2,2942.9,0.00344319]
[1768950411527,0.17009,2943.3,2941.9,3.53787272]
[1768950412329,3.47708788,2943.8,2941.9,3.53787272]
[1768950412633,0.97205162,2943.7,2941.9,3.54151684]
[1768950412830,3.48115184,2943.8,2941.9,3.54151684]
[1768950413226,0.97205194,2943.7,2941.9,3.54151684]
[1768950413429,3.48115184,2943.8,2941.9,3.54151684]
[1768950413630,0.17007,2943.6,2941.9,3.54151684]
[1768950415036,0.17008,2943.5,2941.9,3.54151684]
[1768950416234,0.17009,2943.3,2941.9,3.54151684]
[1768950416540,2.70476447,2943.4,2941.9,3.54151684]
[1768950416541,6.18185235,2943.4,2941.9,0.00364412]
[1768950416836,0.17011,2942.9,2941.9,0.00364412]
[1768950418137,0.17012,2942.8,2941.9,0.00364412]
[1768950419035,0.17012,2942.8,2940.9,3.53787272]
[1768950419036,3.47708788,2942.8,2940.9,3.53787272]
[1768950419335,0.17014,2942.4,2940.9,3.53787272]
[1768950420236,0.17014,2942.4,2940.9,3.5407615]
[1768950420853,0.17015,2942.1,2940.9,0.00288878]
[1768950421037,0.17017,2941.9,2940.9,0.00288878]
[1768950421539,2.70476447,2942.4,2940.9,0.00288878]
[1768950421838,2.87490447,2942.4,2940.9,0.00288878]
[1768950422430,2.70476447,2942.9,2940.9,3.5407615]
[1768950423740,0.17011,2942.8,2940.9,3.5407615]
[1768950424044,0.17011,2942.8,2941.0,3.53787272]
[1768950424841,0.17012,2942.7,2941.0,3.53787272]
[1768950425034,2.87490447,2942.4,2940.9,0.00288878]
[1768950425235,0.17014,2942.3,2940.9,0.00288878]
[1768950425631,2.87487447,2942.9,2940.9,3.5407615]
[1768950427537,0.17011,2942.9,2940.9,3.7109815]
[1768950427933,0.17011,2942.8,2940.9,3.7109815]
[1768950430244,2.87484447,2943.4,2941.1,3.53787272]
[1768950430441,0.17008,2943.4,2941.4,3.53787272]
[1768950430744,3.48115184,2943.8,2941.8,3.53787272]
[1768950431045,0.00406396,2943.8,2941.8,3.53787272]
[1768950432044,0.00406396,2943.8,2942.4,3.53787272]
[1768950432246,0.00406396,2943.8,2942.6,3.53787272]
[1768950434545,0.00406396,2943.8,2942.1,3.53787272]
[1768950434946,3.48115184,2943.8,2941.8,5.391]
[1768950435349,0.17006,2943.7,2941.9,3.71510771]
[1768950440550,2.70476447,2943.5,2941.9,3.71510771]
[1768950441147,0.17008,2943.4,2941.9,3.71510771]
[1768950442749,2.70476447,2943.0,2941.4,3.71510771]
[1768950443950,6.27770323,2943.0,2941.0,6.04210771]
[1768950444554,6.27770323,2943.0,2941.1,3.71510771]
[1768950444849,3.57293876,2943.0,2941.1,3.71510771]
[1768950446557,3.74303876,2943.0,2941.1,3.71510771]
[1768950446762,3.74304876,2942.9,2941.1,3.71510771]
[1768950447260,3.57293876,2942.5,2940.9,0.00288878]
[1768950448359,0.17014,2942.4,2940.9,0.00288878]
[1768950452455,0.17014,2942.4,2940.9,3.71799649]
[1768950456465,0.17011,2942.8,2940.9,3.71799649]
[1768950456662,3.57293876,2943.0,2940.9,3.71799649]
[1768950456954,0.97259461,2942.9,2940.9,3.71799649]
[1768950457159,3.57293876,2943.0,2940.9,3.71799649]
[1768950457466,3.57293876,2942.8,2940.9,3.71799649]
[1768950457667,0.17013,2942.6,2940.9,3.71799649]
[1768950457859,3.74306876,2942.6,2940.9,3.71799649]
[1768950458459,3.57293876,2942.6,2940.9,3.71799649]
[1768950458664,0.17013,2942.5,2940.9,3.71799649]
[1768950461966,3.57293876,2942.5,2940.9,0.00288878]
[1768950462162,0.17014,2942.3,2940.9,0.00288878]
[1768950462558,3.57293876,2942.5,2940.9,0.00288878]
[1768950462964,0.17017,2941.8,2940.4,3.71510771]
[1768950463470,0.17018,2941.7,2939.8,3.71510771]
[1768950463667,0.17019,2941.6,2939.8,3.71510771]
[1768950463868,0.17421957,2941.6,2939.8,3.71859453]
[1768950464068,0.17019,2941.5,2939.8,3.71859453]
[1768950464270,0.1702,2941.4,2939.8,3.71859453]
[1768950466269,3.5665581,2941.6,2939.8,3.71859453]
[1768950466461,3.56252853,2941.4,2939.8,0.00348682]
[1768950466868,0.17023,2940.9,2939.8,0.00348682]
[1768950467363,0.17023,2940.8,2939.8,0.00348682]
[1768950468869,0.17023,2940.8,2939.8,3.50527933]
[1768950469063,0.1702,2941.4,2939.8,3.50527933]
[1768950471971,0.00402957,2941.6,2939.8,3.50527933]
[1768950472170,0.00402957,2941.6,2940.0,3.50179251]
[1768950472371,0.17016,2942.0,2940.0,3.67206251]
[1768950472679,0.17016,2942.0,2940.2,3.67205251]
[1768950472873,0.17016,2942.0,2940.4,3.50179251]
[1768950473075,0.17013,2942.6,2940.4,3.50179251]
[1768950473269,0.17013,2942.6,2940.6,3.50179251]
[1768950473473,0.17428696,2942.6,2940.6,3.50179251]
[1768950473672,0.17428696,2942.6,2940.6,3.67203251]
[1768950473872,0.00415696,2942.6,2940.9,0.17022]
[1768950474175,0.17009,2943.2,2941.2,3.67199251]
[1768950474774,0.17009,2943.2,2941.4,3.50179251]
[1768950475078,3.73257853,2943.9,2941.6,3.50179251]
[1768950475281,1.14559413,2943.8,2941.8,3.50179251]
[1768950475483,0.17008,2943.4,2941.8,3.50179251]
[1768950479783,3.73260853,2943.4,2941.8,3.50179251]
[1768950480291,3.73260853,2943.4,2941.6,5.383]
[1768950480890,0.17009,2943.3,2941.6,5.383]
[1768950481095,0.17009,2943.2,2941.6,5.383]
[1768950481796,0.1701,2943.1,2941.4,3.50179251]
[1768950483093,0.17011,2942.9,2941.4,3.50179251]
[1768950487196,0.17012,2942.8,2941.4,3.50179251]
[1768950487500,0.17012,2942.8,2941.5,2.318]
[1768950487997,3.56252853,2943.2,2940.9,3.50179251]
[1768950488200,0.17014,2942.4,2941.0,3.50179251]
[1768950489196,3.56252853,2942.9,2941.0,3.50179251]
[1768950489392,0.17015,2942.2,2940.6,3.50179251]
[1768950489695,0.17015,2942.2,2940.7,3.50179251]
[1768950490196,0.17016,2942.1,2940.7,5.81879251]
[1768950490395,0.17016,2942.0,2940.7,5.81879251]
[1768950490795,0.17016,2942.0,2940.8,3.50179251]
[1768950491808,0.17013,2942.6,2940.8,3.50179251]
[1768950492196,3.56252853,2943.4,2940.8,3.50179251]
[1768950492401,0.1701,2943.0,2940.8,3.50179251]
[1768950492901,3.56252853,2943.4,2940.8,3.50179251]
[1768950493103,4.5373969,2943.3,2940.8,3.50179251]
[1768950493303,3.56252853,2943.3,2940.8,3.50179251]
[1768950494611,3.5660153,2943.9,2941.4,3.50179251]
[1768950494810,3.5660153,2943.9,2940.9,2.7084019]
[1768950494811,0.17007,2943.5,2941.6,3.50179251]
[1768950495102,0.17007,2943.5,2941.8,3.50179251]
[1768950495306,0.00348677,2943.9,2941.8,3.50179251]
[1768950496002,0.17007,2943.6,2942.0,3.42661409]
[1768950496200,0.00348677,2943.9,2942.0,3.42661409]
[1768950496201,0.00348677,2943.9,2942.0,3.42919447]
[1768950496406,0.17009,2943.2,2942.0,3.42919447]
[1768950496599,0.1701,2943.1,2942.0,3.42919447]
[1768950497007,0.1701,2943.1,2942.0,0.00258038]
[1768950500612,0.17006,2943.7,2942.0,0.00258038]
[1768950500801,0.97783409,2943.6,2942.0,0.00258038]
[1768950501002,0.97783409,2943.5,2942.0,3.42919447]
[1768950502105,1.14790409,2943.5,2942.0,3.42919447]
[1768950502299,0.97783409,2943.4,2942.0,3.42919447]
[1768950503107,0.17008,2943.4,2942.0,3.42919447]
[1768950503408,0.97926805,2943.3,2942.0,3.42919447]
[1768950503603,0.17008,2943.4,2942.0,3.42919447]
[1768950503810,0.97931807,2943.3,2942.0,3.42919447]
[1768950504109,0.17008,2943.4,2942.0,3.42919447]
[1768950504311,0.97931131,2943.3,2942.0,3.42919447]
[1768950504505,0.00348677,2943.9,2942.0,3.42919447]
[1768950504715,1.1495291,2943.8,2942.0,3.42919447]
[1768950504911,0.9794691,2943.7,2942.0,3.42919447]
[1768950506013,1.1495291,2943.7,2942.0,3.42919447]
[1768950506205,0.17006,2943.7,2942.0,3.42919447]
[1768950506717,0.17003,2944.3,2942.6,3.42661409]
[1768950507017,0.16999,2944.9,2942.8,3.42661409]
[1768950507315,0.16999,2944.9,2942.9,3.42661409]
[1768950507803,0.17299413,2944.9,2942.9,3.42661409]
[1768950508505,0.00300413,2944.9,2943.1,3.42661409]
[1768950508906,0.00300413,2944.9,2943.3,3.42661409]
[1768950511616,0.00300413,2944.9,2943.5,3.42661409]
[1768950513517,0.17002,2944.5,2943.0,3.42661409]
[1768950513717,0.17002,2944.5,2943.1,2.313]
[1768950513918,0.17002,2944.4,2943.0,3.42661409]
[1768950514117,2.70633071,2944.1,2942.8,3.061]
[1768950514319,0.17003,2944.3,2942.8,6.48761409]
[1768950514511,0.00300413,2944.9,2942.8,6.48761409]
[1768950514512,0.00300413,2944.9,2942.9,3.42661409]
[1768950514717,3.39240674,2944.9,2942.9,3.42661409]
[1768950515324,0.17001,2944.6,2942.9,3.42661409]
[1768950518721,0.17001,2944.6,2943.0,2.312]
[1768950519926,0.17001,2944.6,2943.0,5.73861409]
[1768950521022,0.17003,2944.3,2942.6,6.48761409]
[1768950521229,0.17003,2944.3,2942.7,2.311]
[1768950521924,0.17,2944.7,2942.8,3.42661409]
[1768950524220,0.17001,2944.6,2942.8,3.42661409]
[1768950524625,0.17002,2944.5,2942.8,3.42661409]
[1768950524818,0.17002,2944.4,2942.9,2.31]
[1768950525019,0.17002,2944.4,2942.9,6.02230772]
[1768950525513,0.17002,2944.4,2943.0,3.71230772]
[1768950526431,0.17003,2944.3,2943.0,3.71230772]
[1768950526629,0.17004,2944.1,2942.8,2.31]
[1768950528136,0.17004,2944.1,2942.8,6.02230772]
[1768950528329,0.17004,2944.1,2942.9,3.71230772]
[1768950528528,0.17001,2944.6,2942.9,3.71230772]
[1768950528734,3.55020377,2944.9,2942.9,3.71230772]
[1768950529034,0.97381633,2944.8,2942.9,3.71230772]
[1768950529334,3.55020377,2944.9,2942.9,3.71230772]
[1768950529530,0.17002,2944.4,2943.0,2.309]
[1768950529934,0.17002,2944.4,2943.0,6.02130772]
[1768950530233,0.17002,2944.4,2943.1,3.71230772]
[1768950531328,0.17003,2944.2,2942.8,2.309]
[1768950532032,0.17003,2944.2,2942.9,3.71230772]
[1768950535830,0.17004,2944.1,2942.9,6.02030772]
[1768950536123,0.17004,2944.1,2942.9,3.71230772]
[1768950538736,3.54719964,2944.6,2942.9,3.71230772]
[1768950538940,3.54719964,2944.6,2941.8,4.44711255]
[1768950538941,3.54719964,2944.0,2942.4,3.71230772]
[1768950539132,0.1701,2943.0,2941.8,3.71230772]
[1768950541139,0.17007,2943.6,2942.0,3.7148881]
[1768950541332,0.17008,2943.4,2942.0,3.7148881]
[1768950541640,0.17009,2943.3,2942.0,0.00258038]
[1768950544536,0.17009,2943.3,2942.0,3.7148881]
[1768950544937,10.16624964,2943.9,2942.0,3.7148881]
[1768950545138,0.97888095,2943.8,2942.0,3.7148881]
[1768950545338,6.61905,2943.9,2942.0,3.7148881]
[1768950545535,0.97877903,2943.8,2942.0,3.7148881]
[1768950545736,6.61905,2943.9,2942.0,3.7148881]
[1768950545943,6.61905,2943.9,2942.1,3.71230772]
[1768950547444,0.17005,2943.9,2942.1,3.71230772]
[1768950548042,0.17002,2944.4,2942.3,3.88244772]
[1768950548345,0.17002,2944.4,2942.5,3.71230772]
[1768950548644,0.17002,2944.4,2942.7,3.71230772]
[1768950549738,0.17002,2944.4,2942.8,6.01830772]
[1768950550342,0.17002,2944.4,2942.9,3.71230772]
[1768950551048,3.71722964,2944.3,2942.9,2.307]
[1768950552044,3.71722964,2944.3,2942.7,2.307]
[1768950553142,0.97834605,2944.2,2942.7,2.307]
[1768950553441,3.71722964,2944.3,2942.7,2.307]
[1768950555254,3.71722964,2944.3,2942.7,5.83253237]
[1768950555749,3.71722964,2944.3,2942.8,3.52553237]
[1768950556255,0.17003,2944.3,2942.8,3.52553237]
[1768950556455,10.09787793,2944.8,2942.8,3.52553237]
[1768950556655,0.17001,2944.6,2942.8,3.52553237]
[1768950556957,1.14888062,2944.5,2942.8,3.52553237]
[1768950557255,0.17002,2944.5,2942.8,3.52553237]
[1768950558354,3.64887793,2944.5,2942.8,3.52553237]